bitfinex-derivatives/quotes_SOLF0:USTF0_20241231
["timestamp","ask_amount","ask_price","bid_price","bid_amount"]
[1735627328523,7.78609952,188.54,188.49,2.6564]
[1735627328820,7.78609952,188.54,188.47,7.78609952]
[1735627329022,10.44189952,188.54,188.49,2.6564]
[1735627329829,10.44189952,188.54,188.47,7.78609952]
[1735627330031,13.52189952,188.54,188.49,2.6564]
[1735627330225,7.78609952,188.52,188.49,2.6564]
[1735627330723,7.78609952,188.5,188.42,3.08]
[1735627330930,7.78609952,188.5,188.43,7.78609952]
[1735627331429,7.78609952,188.5,188.46,2.6568]
[1735627332024,3.0529,188.52,188.43,7.78609952]
[1735627332025,1.5813,188.53,188.43,7.78609952]
[1735627332233,7.78609952,188.5,188.47,2.6566]
[1735627333230,7.78609952,188.5,188.43,7.78609952]
[1735627333431,7.78609952,188.5,188.47,2.6566]
[1735627337233,7.78609952,188.5,188.45,2.657]
[1735627337427,2.6563,188.51,188.45,2.657]
[1735627337428,7.78609952,188.48,188.45,2.657]
[1735627339527,7.78609952,188.48,188.41,7.78609952]
[1735627339733,7.78609952,188.48,188.47,2.6567]
[1735627340134,7.78609952,188.48,188.42,7.78609952]
[1735627340939,7.78609952,188.48,188.45,2.657]
[1735627346844,4.6382,188.53,188.42,7.78609952]
[1735627347042,4.6382,188.53,188.46,7.78609952]
[1735627347247,7.78609952,188.52,188.46,7.78609952]
[1735627347845,7.78609952,188.56,188.48,7.78609952]
[1735627348055,7.78609952,188.56,188.5,7.78609952]
[1735627348447,7.78609952,188.56,188.51,2.6561]
[1735627348754,7.78609952,188.56,188.5,7.78609952]
[1735627348951,7.78609952,188.54,188.48,7.78609952]
[1735627349256,7.78609952,188.54,188.51,2.656]
[1735627349453,7.78609952,188.56,188.48,7.78609952]
[1735627350453,7.78609952,188.56,188.53,2.6558]
[1735627351751,7.78609952,188.56,188.45,29.33650126]
[1735627351955,7.78609952,188.56,188.48,7.78609952]
[1735627352454,7.78609952,188.56,188.53,2.6558]
[1735627354247,7.78609952,188.56,188.52,2.656]
[1735627354746,10.44169952,188.56,188.52,2.656]
[1735627354944,7.78609952,188.54,188.52,2.656]
[1735627355147,7.78609952,188.54,188.51,2.6562]
[1735627355950,7.78609952,188.54,188.49,2.6563]
[1735627356455,7.78609952,188.54,188.46,7.78609952]
[1735627357355,3.08,188.58,188.46,7.78609952]
[1735627357651,7.78609952,188.53,188.5,2.6563]
[1735627360056,7.78609952,188.53,188.52,2.656]
[1735627360253,7.78609952,188.56,188.48,7.78609952]
[1735627360556,7.78609952,188.56,188.5,7.78609952]
[1735627360751,10.4831,188.59,188.55,2.6556]
[1735627360950,1.5879,188.59,188.52,7.78609952]
[1735627361147,9.37399952,188.59,188.52,7.78609952]
[1735627361555,4.30214,188.6,188.48,3.08]
[1735627361556,4.30214,188.6,188.58,2.6551]
[1735627361759,4.30214,188.6,188.56,7.78609952]
[1735627362352,4.30214,188.6,188.59,2.655]
[1735627368755,4.30214,188.6,188.59,10.44109952]
[1735627371665,4.30214,188.6,188.59,13.52109952]
[1735627384375,7.78609952,188.7,188.59,10.86609952]
[1735627384573,7.78609952,188.7,188.64,7.78609952]
[1735627384772,7.78609952,188.7,188.68,2.6537]
[1735627384974,7.78609952,188.7,188.64,7.78609952]
[1735627385873,1.6188,188.71,188.68,2.6537]
[1735627386071,5.3016,188.9,188.68,7.78609952]
[1735627386271,7.78609952,188.76,188.68,7.78609952]
[1735627386475,10.3209,188.8,188.7,7.78609952]
[1735627386672,7.78609952,188.77,188.7,7.78609952]
[1735627387077,7.78609952,188.79,188.76,2.6527]
[1735627391568,7.78609952,188.79,188.74,2.6528]
[1735627391970,7.78609952,188.79,188.7,10.86609952]
[1735627392171,7.78609952,188.79,188.73,2.6531]
[1735627392376,7.78609952,188.77,188.7,3.08]
[1735627393174,10.43859952,188.77,188.71,2.6532]
[1735627393375,7.78609952,188.75,188.64,29.33650126]
[1735627393581,7.78609952,188.75,188.68,7.78609952]
[1735627393878,7.78609952,188.75,188.69,2.6536]
[1735627394376,10.43889952,188.75,188.69,2.6536]
[1735627396175,10.43889952,188.75,188.7,2.6535]
[1735627396377,7.78609952,188.75,188.7,2.6535]
[1735627396578,7.78609952,188.75,188.68,7.78609952]
[1735627397379,7.78609952,188.75,188.72,2.6532]
[1735627398588,2.6525,188.77,188.72,2.6532]
[1735627398787,7.78609952,188.76,188.72,2.6532]
[1735627399081,2.6525,188.77,188.73,2.6531]
[1735627399290,7.78609952,188.77,188.7,7.78609952]
[1735627399684,7.78609952,188.77,188.73,2.653]
[1735627400080,7.78609952,188.79,188.72,7.78609952]
[1735627400884,7.6688,188.8,188.74,7.78609952]
[1735627401481,7.6688,188.8,188.77,2.6524]
[1735627402489,4.5888,188.8,188.78,2.6524]
[1735627402694,4.5888,188.8,188.76,7.78609952]
[1735627402989,21.2492,188.99,188.84,2.6515]
[1735627403189,2.6509,188.89,188.8,7.78609952]
[1735627403391,7.78609952,188.87,188.8,7.78609952]
[1735627404092,7.78609952,188.87,188.82,2.6518]
[1735627404388,3.08,188.91,188.82,7.78609952]
[1735627404581,10.86609952,188.91,188.87,2.651]
[1735627405288,10.86609952,188.91,188.85,2.6513]
[1735627405485,7.78609952,188.89,188.85,2.6513]
[1735627405686,7.78609952,188.89,188.82,10.86609952]
[1735627405985,3.08,188.91,188.8,7.78609952]
[1735627406387,7.78609952,188.88,188.8,7.78609952]
[1735627407490,7.78609952,188.88,188.83,2.6516]
[1735627410488,2.651,188.88,188.81,2.6518]
[1735627410695,7.78609952,188.86,188.81,2.6518]
[1735627410897,4.6525,188.85,188.81,2.6518]
[1735627411394,7.78609952,188.84,188.8,2.6521]
[1735627411590,7.78609952,188.84,188.76,7.78609952]
[1735627411892,10.43769952,188.84,188.78,2.6522]
[1735627412093,7.78609952,188.84,188.76,7.78609952]
[1735627413295,12.43859952,188.85,188.8,2.652]
[1735627413996,15.08999952,188.85,188.8,2.652]
[1735627414195,4.6525,188.85,188.84,2.6515]
[1735627416293,1.5957,188.85,188.84,2.6515]
[1735627420097,1.5957,188.85,188.82,7.78609952]
[1735627420098,1.5957,188.85,188.82,2.6517]
[1735627420303,1.5957,188.85,188.8,7.78609952]
[1735627421505,1.5957,188.85,188.82,2.6517]
[1735627422000,9.38179952,188.85,188.8,2.652]
[1735627422999,1.5957,188.85,188.78,3.08]
[1735627423200,7.78609952,188.83,188.78,2.6522]
[1735627424509,10.43789952,188.83,188.78,2.6522]
[1735627424905,10.43789952,188.83,188.79,2.6522]
[1735627425101,2.6518,188.83,188.79,2.6522]
[1735627425406,10.43789952,188.83,188.79,2.6522]
[1735627425603,7.78609952,188.83,188.74,3.08]
[1735627425908,2.6518,188.82,188.74,7.78609952]
[1735627426108,7.78609952,188.83,188.74,7.78609952]
[1735627426309,7.78609952,188.83,188.78,2.6523]
[1735627426913,7.78609952,188.83,188.74,7.78609952]
[1735627427217,7.78609952,188.83,188.79,2.6522]
[1735627429619,5.7662,188.84,188.79,2.6522]
[1735627429820,7.78609952,188.83,188.79,2.6522]
[1735627433119,10.43789952,188.83,188.79,2.6522]
[1735627433919,7.78609952,188.81,188.77,2.6524]
[1735627434119,2.6519,188.82,188.74,10.86609952]
[1735627434315,10.43799952,188.82,188.74,10.86609952]
[1735627435016,2.6521,188.81,188.74,3.08]
[1735627435223,7.78609952,188.78,188.7,37.12260078]
[1735627435518,10.43849952,188.78,188.7,37.12260078]
[1735627435718,7.78609952,188.78,188.7,37.12260078]
[1735627435919,7.78609952,188.78,188.7,7.78609952]
[1735627436720,9.41979952,188.78,188.7,7.78609952]
[1735627436916,9.41979952,188.78,188.73,2.653]
[1735627437618,9.41979952,188.78,188.7,7.78609952]
[1735627437822,9.41979952,188.78,188.74,2.6529]
[1735627438414,7.78609952,188.8,188.77,2.6524]
[1735627438619,7.78609952,188.82,188.74,10.86609952]
[1735627439120,7.78609952,188.82,188.76,2.6526]
[1735627439321,12.38989952,188.84,188.76,7.78609952]
[1735627439915,15.04139952,188.84,188.79,2.6522]
[1735627440417,7.78609952,188.82,188.78,2.6524]
[1735627440618,7.78609952,188.82,188.74,10.86609952]
[1735627441124,10.43789952,188.82,188.77,2.6524]
[1735627441817,10.43789952,188.82,188.78,2.6524]
[1735627447228,2.6518,188.82,188.78,2.6524]
[1735627447423,10.43789952,188.82,188.78,2.6524]
[1735627447824,7.78609952,188.82,188.8,2.6521]
[1735627448723,12.38989952,188.84,188.81,2.652]
[1735627449229,4.6038,188.84,188.81,2.652]
[1735627449621,1.4892,188.84,188.83,2.6517]
[1735627450024,7.78609952,188.88,188.8,7.78609952]
[1735627450225,7.78609952,188.88,188.84,2.6515]
[1735627451525,10.43709952,188.88,188.84,2.6515]
[1735627451726,7.78609952,188.88,188.82,2.6517]
[1735627452028,2.6511,188.87,188.8,7.78609952]
[1735627453035,7.78609952,188.86,188.8,7.78609952]
[1735627454429,7.78609952,188.86,188.83,2.6516]
[1735627458640,7.78609952,188.86,188.78,7.78609952]
[1735627458841,10.43739952,188.86,188.78,7.78609952]
[1735627460437,10.43739952,188.86,188.82,2.6517]
[1735627460835,2.6513,188.86,188.82,2.6517]
[1735627461030,7.78609952,188.85,188.82,2.6517]
[1735627461440,2.651,188.88,188.83,2.6516]
[1735627461636,7.78609952,188.87,188.83,2.6516]
[1735627462038,10.43719952,188.87,188.83,2.6516]
[1735627466142,7.78609952,188.84,188.75,29.33650126]
[1735627466349,7.78609952,188.81,188.75,29.33650126]
[1735627466535,7.78609952,188.81,188.77,2.6524]
[1735627466739,7.78609952,188.81,188.74,7.78609952]
[1735627468046,7.78609952,188.81,188.76,2.6526]
[1735627468245,7.78609952,188.81,188.74,7.78609952]
[1735627469345,2.6521,188.8,188.71,4.6194]
[1735627469543,7.78609952,188.79,188.72,7.78609952]
[1735627469940,7.78609952,188.79,188.74,2.6528]
[1735627470340,10.43839952,188.79,188.74,2.6528]
[1735627470536,2.6523,188.79,188.74,2.6528]
[1735627470737,7.78609952,188.78,188.73,2.6531]
[1735627470939,10.43859952,188.78,188.73,2.6531]
[1735627471143,7.78609952,188.76,188.69,10.86609952]
[1735627471540,7.78609952,188.76,188.68,37.12260078]
[1735627471845,7.78609952,188.76,188.68,7.78609952]
[1735627472145,2.6525,188.77,188.72,2.6532]
[1735627472344,7.78609952,188.76,188.68,7.78609952]
[1735627472546,7.78609952,188.76,188.7,7.78609952]
[1735627474547,7.78609952,188.76,188.73,2.6531]
[1735627476146,10.43849952,188.78,188.73,2.6531]
[1735627476646,7.78609952,188.76,188.73,2.6531]
[1735627477551,7.78609952,188.76,188.72,2.6532]
[1735627477945,7.78609952,188.76,188.69,7.78609952]
[1735627478145,7.78609952,188.76,188.73,2.6531]
[1735627479044,2.6526,188.77,188.73,2.6531]
[1735627479250,7.78609952,188.76,188.73,2.6531]
[1735627479645,2.6526,188.77,188.73,2.6531]
[1735627479845,4.6944,188.83,188.71,7.78609952]
[1735627480046,7.78609952,188.79,188.71,7.78609952]
[1735627481145,7.78609952,188.79,188.76,2.6527]
[1735627482047,7.78609952,188.79,188.77,2.6524]
[1735627484949,7.78609952,188.79,188.74,2.6528]
[1735627485156,7.78609952,188.8,188.73,7.78609952]
[1735627485954,7.78609952,188.8,188.77,2.6525]
[1735627489459,7.78609952,188.82,188.73,7.78609952]
[1735627489658,7.78609952,188.82,188.79,2.6522]
[1735627490353,15.13219952,188.83,188.79,2.6522]
[1735627491357,7.78609952,188.82,188.79,2.6522]
[1735627491958,10.43799952,188.82,188.73,7.78609952]
[1735627492352,10.43799952,188.82,188.75,2.6527]
[1735627492548,10.43799952,188.82,188.73,7.78609952]
[1735627492859,10.43829952,188.8,188.73,7.78609952]
[1735627493159,7.78609952,188.8,188.74,2.6529]
[1735627493558,2.6524,188.78,188.74,2.6529]
[1735627494361,2.6524,188.78,188.75,2.6528]
[1735627494658,2.6525,188.77,188.69,10.86609952]
[1735627495056,7.78609952,188.76,188.69,10.86609952]
[1735627495361,7.78609952,188.76,188.71,2.6533]
[1735627495563,7.78609952,188.76,188.69,10.86609952]
[1735627495954,7.78609952,188.78,188.75,2.6528]
[1735627497455,2.6523,188.79,188.75,2.6528]
[1735627497656,7.78609952,188.78,188.71,7.78609952]
[1735627497857,7.78609952,188.8,188.71,7.78609952]
[1735627498649,7.78609952,188.78,188.71,7.78609952]
[1735627499861,7.78609952,188.78,188.74,2.6528]
[1735627500561,7.78609952,188.78,188.73,2.6531]
[1735627500852,7.78609952,188.76,188.7,3.08]
[1735627502254,7.78609952,188.76,188.72,2.6531]
[1735627502858,7.78609952,188.76,188.7,3.08]
[1735627503157,7.78609952,188.76,188.73,2.653]
[1735627503861,10.43849952,188.78,188.72,2.6532]
[1735627504062,10.43849952,188.78,188.7,3.08]
[1735627504955,10.43849952,188.78,188.74,2.6529]
[1735627505560,4.6944,188.83,188.71,7.78609952]
[1735627505763,7.78609952,188.8,188.71,7.78609952]
[1735627506060,7.78609952,188.8,188.78,2.6522]
[1735627506562,2.6517,188.83,188.73,7.78609952]
[1735627506756,7.78609952,188.82,188.8,2.6521]
[1735627508462,7.78609952,188.82,188.75,10.86609952]
[1735627508657,7.78609952,188.8,188.77,2.6525]
[1735627508962,7.78609952,188.78,188.72,7.33884635]
[1735627509364,7.78609952,188.78,188.71,10.86609952]
[1735627509757,7.78609952,188.78,188.75,2.6527]
[1735627510059,7.78609952,188.76,188.7,29.33650126]
[1735627510259,7.78609952,188.76,188.72,2.6532]
[1735627511259,7.78609952,188.76,188.69,10.86609952]
[1735627511563,7.78609952,188.78,188.69,10.86609952]
[1735627511960,7.78609952,188.78,188.71,7.78609952]
[1735627512161,10.86609952,188.8,188.71,7.78609952]
[1735627514566,10.86609952,188.8,188.76,2.6525]
[1735627516863,7.78609952,188.78,188.74,2.6528]
[1735627517964,2.6526,188.77,188.72,2.6532]
[1735627518164,7.78609952,188.76,188.72,2.6532]
[1735627518365,7.78609952,188.74,188.67,29.33650126]
[1735627518567,7.78609952,188.74,188.69,2.6535]
[1735627519264,7.78609952,188.74,188.67,7.78609952]
[1735627519464,10.43909952,188.74,188.7,2.6535]
[1735627519664,7.78609952,188.72,188.66,29.33650126]
[1735627520363,7.78609952,188.68,188.63,10.41884635]
[1735627520565,7.78609952,188.68,188.66,2.654]
[1735627521268,7.78609952,188.7,188.63,7.33884635]
[1735627521465,7.78609952,188.7,188.63,7.78609952]
[1735627521867,7.78609952,188.71,188.63,7.78609952]
[1735627522268,7.78609952,188.71,188.65,2.6541]
[1735627522463,7.78609952,188.71,188.61,10.86609952]
[1735627522670,7.78609952,188.69,188.61,10.86609952]
[1735627522972,7.78609952,188.65,188.59,15.12494587]
[1735627523172,7.78609952,188.65,188.59,7.33884635]
[1735627523468,7.78609952,188.63,188.59,9.99374635]
[1735627523670,7.78609952,188.63,188.59,7.33884635]
[1735627523971,7.78609952,188.63,188.58,2.6551]
[1735627524169,7.78609952,188.63,188.56,7.78609952]
[1735627524469,7.78609952,188.61,188.57,2.6553]
[1735627525164,7.78609952,188.61,188.56,2.6555]
[1735627525865,7.78609952,188.61,188.57,2.6553]
[1735627526066,2.6545,188.63,188.57,2.6553]
[1735627526262,7.78609952,188.62,188.54,7.78609952]
[1735627526466,7.78609952,188.62,188.56,2.6554]
[1735627526770,7.78609952,188.62,188.54,7.78609952]
[1735627527166,7.78609952,188.62,188.59,2.655]
[1735627527470,7.78609952,188.64,188.53,3.08]
[1735627527663,7.78609952,188.64,188.56,7.78609952]
[1735627527868,7.78609952,188.62,188.56,7.78609952]
[1735627528069,7.78609952,188.62,188.54,7.78609952]
[1735627528269,7.78609952,188.62,188.57,2.6553]
[1735627529369,7.78609952,188.62,188.58,2.6552]
[1735627529867,7.78609952,188.62,188.59,2.655]
[1735627533066,7.78609952,188.6,188.57,2.6552]
[1735627533270,7.78609952,188.6,188.54,7.78609952]
[1735627533573,7.78609952,188.6,188.55,2.6555]
[1735627533773,7.78609952,188.6,188.54,7.78609952]
[1735627534169,7.78609952,188.6,188.57,2.6552]
[1735627535269,7.78609952,188.6,188.52,7.78609952]
[1735627535478,7.78609952,188.58,188.5,7.78609952]
[1735627535876,7.78609952,188.58,188.55,2.6555]
[1735627536375,7.78609952,188.58,188.5,7.78609952]
[1735627537672,7.78609952,188.58,188.55,2.6555]
[1735627538971,7.78609952,188.58,188.56,2.6555]
[1735627542477,7.78609952,188.58,188.44,1.5689]
[1735627542681,7.78609952,188.56,188.49,7.78609952]
[1735627544085,7.78609952,188.54,188.44,1.5689]
[1735627544285,7.78609952,188.54,188.47,7.78609952]
[1735627544485,7.78609952,188.56,188.49,7.78609952]
[1735627544687,7.78609952,188.58,188.51,7.78609952]
[1735627544981,1.4925,188.59,188.53,7.78609952]
[1735627545589,7.78609952,188.58,188.51,10.86609952]
[1735627546785,7.78609952,188.56,188.53,2.6559]
[1735627546990,7.78609952,188.56,188.51,3.08]
[1735627549191,7.78609952,188.56,188.54,2.6557]
[1735627549491,4.1476,188.59,188.51,3.08]
[1735627549492,7.78609952,188.58,188.51,10.86609952]
[1735627549687,3.0617,188.6,188.58,2.6552]
[1735627549893,1.5145,188.6,188.55,7.78609952]
[1735627550093,7.78609952,188.62,188.55,7.78609952]
[1735627550902,7.78609952,188.62,188.61,2.6548]
[1735627551295,7.78609952,188.62,188.55,7.78609952]
[1735627551489,7.78609952,188.62,188.6,2.6549]
[1735627551696,3.1425,188.65,188.55,7.78609952]
[1735627551993,3.1425,188.65,188.63,2.6545]
[1735627552199,1.5757,188.65,188.63,2.6545]
[1735627552498,7.10731,188.66,188.61,7.78609952]
[1735627552697,7.10731,188.66,188.65,2.6542]
[1735627552892,7.10731,188.66,188.65,10.44029952]
[1735627553097,2.19731,188.66,188.65,10.44029952]
[1735627553901,1.75421,188.66,188.65,10.44029952]
[1735627556696,1.75421,188.66,188.64,3.08]
[1735627557096,1.75421,188.66,188.61,7.78609952]
[1735627557501,1.75421,188.66,188.64,2.6543]
[1735627557703,1.75421,188.66,188.65,7.78609952]
[1735627558298,1.75421,188.66,188.65,10.86609952]
[1735627559400,1.75421,188.66,188.65,13.52029952]
[1735627559901,10.90659952,188.77,188.65,10.86609952]
[1735627560105,3.1205,188.77,188.71,7.78609952]
[1735627560602,3.1205,188.77,188.74,2.6529]
[1735627561399,3.1205,188.77,188.75,2.6528]
[1735627561804,7.78609952,188.78,188.75,2.6528]
[1735627562502,7.78609952,188.8,188.76,2.6527]
[1735627562805,4.5707,188.88,188.77,7.78609952]
[1735627562806,7.6507,188.88,188.77,7.78609952]
[1735627563006,7.78609952,188.85,188.79,7.78609952]
[1735627563199,7.78609952,188.87,188.83,2.6517]
[1735627563406,7.78609952,188.87,188.79,7.78609952]
[1735627564103,7.78609952,188.85,188.77,7.78609952]
[1735627565201,7.78609952,188.82,188.75,10.86609952]
[1735627565499,7.78609952,188.83,188.78,2.6522]
[1735627565699,7.78609952,188.85,188.79,7.78609952]
[1735627566004,7.78609952,188.87,188.79,7.78609952]
[1735627566195,7.78609952,188.85,188.79,7.78609952]
[1735627566595,4.5707,188.88,188.77,7.78609952]
[1735627566596,7.78609952,188.83,188.77,7.78609952]
[1735627566800,10.43789952,188.83,188.77,10.43849952]
[1735627567094,7.78609952,188.83,188.77,7.78609952]
[1735627568406,2.6515,188.85,188.79,2.6521]
[1735627568610,7.78609952,188.83,188.77,7.78609952]
[1735627569302,7.78609952,188.83,188.79,2.6521]
[1735627569803,7.78609952,188.83,188.75,10.86609952]
[1735627570106,7.78609952,188.83,188.78,2.6523]
[1735627570406,7.78609952,188.83,188.75,10.86609952]
[1735627570605,7.78609952,188.81,188.77,2.6525]
[1735627570805,7.78609952,188.79,188.71,10.86609952]
[1735627572403,7.78609952,188.79,188.76,2.6527]
[1735627572599,3.08,188.86,188.76,2.6527]
[1735627572804,7.78609952,188.82,188.75,7.78609952]
[1735627573105,7.78609952,188.82,188.77,2.6525]
[1735627573304,7.78609952,188.82,188.75,7.78609952]
[1735627573608,7.78609952,188.82,188.77,2.6524]
[1735627573907,7.78609952,188.82,188.75,7.78609952]
[1735627574405,7.78609952,188.82,188.77,2.6525]
[1735627574803,3.08,188.85,188.75,7.78609952]
[1735627575000,7.78609952,188.82,188.78,2.6523]
[1735627576209,2.6516,188.84,188.78,2.6523]
[1735627576407,7.78609952,188.82,188.78,2.6523]
[1735627577401,7.78609952,188.82,188.79,2.6522]
[1735627577608,7.78609952,188.86,188.77,7.78609952]
[1735627577812,7.78609952,188.86,188.79,7.78609952]
[1735627578012,7.78609952,188.86,188.79,10.86609952]
[1735627578406,7.78609952,188.86,188.83,2.6516]
[1735627578803,7.78609952,188.86,188.79,10.86609952]
[1735627579018,7.78609952,188.86,188.84,2.6515]
[1735627583310,4.5707,188.88,188.8,7.78609952]
[1735627583609,4.5707,188.88,188.82,7.78609952]
[1735627584010,1.0587052,188.91,188.84,7.78609952]
[1735627584207,1.0587052,188.91,188.86,7.78609952]
[1735627584908,1.0587052,188.91,188.9,2.6507]
[1735627587016,2.6497,188.97,188.91,2.6505]
[1735627587319,14.77515303,188.99,188.94,2.6501]
[1735627587525,4.6213,189.01,188.89,15.20575303]
[1735627588614,4.6213,189.01,188.9,3.08]
[1735627588814,2.6494,188.99,188.93,2.6501]
[1735627589020,4.6213,189.01,188.9,3.08]
[1735627589411,3.0983,189.01,188.98,2.6496]
[1735627589614,3.0983,189.01,188.95,3.08]
[1735627590113,1.5363,189.08,188.95,15.20575303]
[1735627590314,4.6608,189.08,188.95,15.20575303]
[1735627592019,4.6608,189.08,188.96,3.08]
[1735627592219,12.12575303,189.06,188.96,3.08]
[1735627592420,2.6493,189.01,188.94,2.65]
[1735627592621,2.6493,189.01,188.94,5.73]
[1735627592819,16.65565303,189.0,188.93,46.80147408]
[1735627593421,16.65565303,189.0,188.89,3.08]
[1735627593724,19.30505303,189.0,188.93,2.6501]
[1735627593917,19.30505303,189.0,188.89,3.08]
[1735627594727,16.65565303,189.0,188.89,3.08]
[1735627594914,19.30495303,189.0,188.89,3.08]
[1735627595118,16.65565303,189.0,188.89,3.08]
[1735627595321,4.5299,189.0,188.9,12.12575303]
[1735627595618,3.016,189.0,188.9,12.12575303]
[1735627595818,1.48,189.0,188.9,12.12575303]
[1735627596321,12.12575303,189.03,189.0,2.6493]
[1735627596518,1.5921,189.07,188.96,3.08]
[1735627596719,1.5921,189.07,188.96,15.20575303]
[1735627597218,1.5921,189.07,189.05,2.6486]
[1735627598018,1.5921,189.07,188.96,15.20575303]
[1735627598226,1.5921,189.07,189.04,2.6487]
[1735627599527,2.6478,189.11,189.05,2.6485]
[1735627600226,2.6478,189.11,189.01,3.08]
[1735627600427,2.6478,189.11,189.06,2.6484]
[1735627600625,14.45484134,189.12,189.06,2.6484]
[1735627600924,17.10244134,189.12,189.06,2.6484]
[1735627601327,17.10244134,189.12,189.07,2.6483]
[1735627601729,14.45484134,189.12,189.01,3.08]
[1735627602528,2.6483,189.08,189.03,2.6489]
[1735627602733,12.12575303,189.09,188.98,10.41884635]
[1735627602935,12.12575303,189.09,188.98,3.08]
[1735627603328,2.6484,189.07,189.02,2.649]
[1735627604126,2.6478,189.11,189.06,2.6484]
[1735627604333,14.45484134,189.12,189.0,12.12575303]
[1735627604733,14.45484134,189.12,189.07,2.6483]
[1735627605734,17.10244134,189.12,189.07,2.6483]
[1735627606232,4.5401,189.13,189.03,15.20575303]
[1735627606434,4.5401,189.13,189.04,3.08]
[1735627606633,3.0655,189.13,189.06,12.12575303]
[1735627607133,17.85265303,189.18,189.13,2.6475]
[1735627607336,1.4855,189.17,189.06,12.12575303]
[1735627607733,1.4855,189.17,189.12,2.6476]
[1735627607932,1.4855,189.17,189.09,3.08]
[1735627608639,1.4855,189.17,189.13,2.6473]
[1735627609438,1.4855,189.17,189.09,3.08]
[1735627611036,1.4855,189.17,189.13,2.6474]
[1735627612431,1.4855,189.17,189.09,15.20575303]
[1735627612639,1.5742,189.24,189.12,12.12575303]
[1735627612832,1.5081,189.23,189.12,12.12575303]
[1735627613035,2.6462,189.22,189.17,2.6469]
[1735627613231,1.5081,189.23,189.14,3.06]
[1735627614138,1.5081,189.23,189.19,2.6465]
[1735627615235,4.1541,189.23,189.17,2.6468]
[1735627615437,1.5081,189.23,189.14,3.06]
[1735627616032,2.6464,189.21,189.15,2.647]
[1735627616336,3.06,189.21,189.09,3.06]
[1735627616737,2.6467,189.19,189.12,2.6474]
[1735627617040,2.6467,189.19,189.09,3.06]
[1735627617738,15.18575303,189.22,189.1,12.12575303]
[1735627617935,3.06,189.22,189.1,12.12575303]
[1735627618340,5.7062,189.22,189.1,12.12575303]
[1735627619132,5.7062,189.22,189.16,2.6469]
[1735627619435,3.06,189.22,189.1,12.12575303]
[1735627619638,3.06,189.22,189.17,2.6468]
[1735627619943,3.06,189.22,189.1,12.12575303]
[1735627619944,1.5081,189.23,189.14,3.06]
[1735627620246,1.5081,189.23,189.15,3.06]
[1735627620544,1.5742,189.24,189.16,12.12575303]
[1735627622437,1.5742,189.24,189.2,2.6464]
[1735627622637,1.5742,189.24,189.16,12.12575303]
[1735627624442,1.5742,189.24,189.18,2.6467]
[1735627624642,1.5742,189.24,189.16,12.12575303]
[1735627625042,1.5742,189.24,189.2,2.6464]
[1735627625840,1.5742,189.24,189.16,12.12575303]
[1735627626037,1.5903,189.33,189.19,12.12575303]
[1735627626038,12.12575303,189.32,189.19,12.12575303]
[1735627626235,3.1442,189.32,189.22,12.12575303]
[1735627628541,3.1442,189.32,189.27,2.6453]
[1735627629439,3.1442,189.32,189.28,2.6453]
[1735627629639,1.58,189.32,189.25,15.18575303]
[1735627630142,1.58,189.32,189.29,2.6452]
[1735627630333,1.58,189.32,189.25,15.18575303]
[1735627631444,1.58,189.32,189.28,2.6453]
[1735627631641,1.58,189.32,189.25,15.18575303]
[1735627631839,1.58,189.32,189.25,10.39884635]
[1735627632038,1.5903,189.33,189.25,10.39884635]
[1735627632440,1.5903,189.33,189.25,3.06]
[1735627633138,2.6449,189.31,189.26,2.6456]
[1735627633539,4.2351,189.33,189.25,3.06]
[1735627633734,2.6448,189.33,189.25,3.06]
[1735627634640,2.6448,189.33,189.28,2.6453]
[1735627635144,13.60275303,189.35,189.23,32.39650126]
[1735627635344,13.60275303,189.35,189.24,7.33884635]
[1735627635345,12.12575303,189.32,189.24,7.33884635]
[1735627635546,15.18575303,189.32,189.24,7.33884635]
[1735627636339,2.6452,189.29,189.24,7.33884635]
[1735627636634,2.6452,189.29,189.2,7.33884635]
[1735627636837,2.6455,189.27,189.2,7.33884635]
[1735627637036,3.06,189.27,189.2,7.33884635]
[1735627637238,1.6186,189.26,189.2,7.33884635]
[1735627637445,2.6461,189.23,189.2,7.33884635]
[1735627637637,12.12575303,189.25,189.2,7.33884635]
[1735627637844,2.6464,189.21,189.16,31.98350126]